Workbook

Sheet CAPA
G2: SECRETARIA DE ESTADO DA INFRAESTRUTURA E DOS RECURSOS HÍDRICOS
B9: MODELO DE VIABILIDADE ECONÔMICO-FINANCEIRA
B11: GRUPO 1
B16: PARCERIA PÚBLICA-PRIVADA (PPP) NA MODALIDADE DE CONCESSÃO ADMINISTRATIVA PARA CONSTRUÇÃO, OPERAÇÃO E MANUTENÇÃO DE MINIUSINAS FOTOVOLTAICAS (MINIUFVS) PARA O GOVERNO DO ESTADO DA PARAÍBA
F28: João Pessoa, dezembro/2023

Sheet ÍNDICE
B2: ORDEM | C2: DESIGNAÇÃO
B3: 1 | C3: MANUAL
B4: 2 | C4: SIMULADOR
B5: 2.1 | C5: RESUMO
B6: 3 | C6: CAPEX
B7: 4 | C7: OPEX
B8: 5 | C8: CPMC (WACC)
B9: 6 | C9: Contraprestação
B10: 7 | C10: Variáveis de Financiamento
B11: 8 | C11: Simulação de Financiamento
B12: 9 | C12: FLUXO DE CAIXA
B13: 10 | C13: DRE
B16: SIGLA | C16: SIGNIFICADO
B17: CAPEX | C17: Capital Expenditure
B18: OPEX | C18: Operational Expenditure
B19: CMPC | C19: Custo Médio Ponderado de Capital (WACC)
B20: DRE | C20: Demonstração de Resultado de Exercício

Sheet 1. MANUAL
G2: SECRETARIA DE ESTADO DA INFRAESTRUTURA E DOS RECURSOS HÍDRICOS

Sheet 2. SIMULADOR
B3: PREMISSAS | C3: GRUPO I | F3: INDICADORES | G3: GRUPO I
B4: CAPEX total | C4: =C5+C6 -> 38526599.45 | F4: Receita Bruta total | G4: =SUM('9. FLUXO DE CAIXA '!D5:AA5) -> 123275129.6
B5: 1º CAPEX (R$) | C5: ='3. CAPEX '!D25 -> 36734909.21 | F5: Contraprestação Mensal | G5: ='9. FLUXO DE CAIXA '!D5/12 -> 428038.6444
B6: 2º CAPEX (R$) | C6: ='3. CAPEX '!E25 -> 1791690.237 | F6: Contraprestação Anual | G6: ='9. FLUXO DE CAIXA '!D5 -> 5136463.733
B7: OPEX total | C7: =24*C8 -> 14959459.96 | F7: Tributos totais | G7: =-1*(SUM('9. FLUXO DE CAIXA '!D8:AA8)+SUM('9. FLUXO DE CAIXA '!D9:AA9)+SUM('9. FLUXO DE CAIXA '!D10:AA10)+SUM('9. FLUXO DE CAIXA '!D14:AA14)+SUM('9. FLUXO DE CAIXA '!D15:AA15)+SUM('9. FLUXO DE CAIXA '!D16:AA16)) -> 21034130.22
B8: OPEX (anual) (R$) | C8: ='4. OPEX'!D10 -> 623310.8318 | F8: TIR acionista | G8: ='9. FLUXO DE CAIXA '!C38 -> 0.1017371708
B9: TMA (CMPC) | C9: ='5. CMPC (WACC)'!G5 -> 0.0822892297 | F9: VPL acionista | G9: ='9. FLUXO DE CAIXA '!C39 -> 2808244.049
B10: TMA(arbitrária)1 | C10: 0.076 | F10: Payback acionista | G10: ='9. FLUXO DE CAIXA '!C40 -> 14.12543497
B11: Alavancagem | C11: 0.7 | F11: TIR do Projeto | G11: ='9. FLUXO DE CAIXA '!C28 -> 0.08276031297
B12: Impostos (Lucro Presumido) | C12: 0.1733 | F12: VPL do Projeto | G12: ='9. FLUXO DE CAIXA '!C29 -> 141811.7781
B13: Regime Contábil | C13: ='2.1 RESUMO'!C11 -> Lucro Presumido | F13: Payback do projeto | G13: ='9. FLUXO DE CAIXA '!C31 -> 10.1010801
B14: Prazo da Concessão (em anos) | C14: ='2.1 RESUMO'!C12 -> 25
B15: 1- Para o caso de alavancagem nula
F16: DADOS DE FINANCIAMENTO | G16: GRUPO I
F17: Valor captado | G17: ='7. VARIÁVEIS DE FINANCIAMENTO'!D22 -> 26968619.62
F18: Custo financeiro da Dívida | G18: ='7. VARIÁVEIS DE FINANCIAMENTO'!C18 -> 0.0635
F19: ICSD médio | G19: ='9. FLUXO DE CAIXA '!C41 -> 1.19659968

Sheet 2.1 RESUMO
B3: RESUMO | C3: GRUPO I
B4: Receita Bruta total | C4: =SUM('9. FLUXO DE CAIXA '!D5:AA5) -> 123275129.6
B5: CAPEX total | C5: ='3. CAPEX '!F25 -> 38526599.45
B6: OPEX total | C6: =SUM('4. OPEX'!D10:AA10) -> 14959459.96
B7: Tributos totais | C7: =-1*(SUM('9. FLUXO DE CAIXA '!D8:AA8)+SUM('9. FLUXO DE CAIXA '!D9:AA9)+SUM('9. FLUXO DE CAIXA '!D10:AA10)+SUM('9. FLUXO DE CAIXA '!D14:AA14)+SUM('9. FLUXO DE CAIXA '!D15:AA15)+SUM('9. FLUXO DE CAIXA '!D16:AA16)) -> 21034130.22
B8: Contraprestação Mensal | C8: ='9. FLUXO DE CAIXA '!D5/12 -> 428038.6444
B9: Contraprestação Anual | C9: ='9. FLUXO DE CAIXA '!D5 -> 5136463.733
B10: TMA (CMPC) | C10: ='5. CMPC (WACC)'!G5 -> 0.0822892297
B11: Regime Contábil | C11: Lucro Presumido
B12: Prazo da Concessão | C12: 25
B14: INDICADORES | C14: GRUPO I
B15: TIR acionista | C15: ='9. FLUXO DE CAIXA '!C38 -> 0.1017371708
B16: VPL acionista | C16: ='9. FLUXO DE CAIXA '!C39 -> 2808244.049
B17: Payback acionista | C17: ='9. FLUXO DE CAIXA '!C40 -> 14.12543497
B18: TIR do Projeto | C18: ='9. FLUXO DE CAIXA '!C28 -> 0.08276031297
B19: VPL do Projeto | C19: ='9. FLUXO DE CAIXA '!C29 -> 141811.7781
B20: Payback do projeto | C20: ='9. FLUXO DE CAIXA '!C31 -> 10.1010801
B22: PREMISSAS DE FINANCIAMENTO | C22: GRUPO I
B23: Alavancagem | C23: ='5. CMPC (WACC)'!G10 -> 0.7
B24: Valor captado | C24: ='7. VARIÁVEIS DE FINANCIAMENTO'!D22 -> 26968619.62
B25: Custo financeiro da Dívida | C25: ='7. VARIÁVEIS DE FINANCIAMENTO'!C18 -> 0.0635
B26: ICSD médio | C26: ='9. FLUXO DE CAIXA '!C41 -> 1.19659968

Sheet 3. CAPEX
B2: 1- USINA SOLAR FOTOVOLTAICA | D2: 1º ANO (R$) | E2: 2º CAPEX - ANO 13 (R$) | F2: CAPEX TOTAL (R$)
B3: 1.1 | C3: PAINEIS | D3: 10371757.35 | E3: 505866.9474 | F3: =D3+E3 -> 10877624.3
B4: 1.2 | C4: INVERSORES | D4: 1774926.816 | E4: 86569.39994 | F4: 1861496.216
B5: 1.3 | C5: SUPORTES RACK | D5: 3984041.644 | E5: 194315.6705 | F5: 4178357.314
B6: 1.4 | C6: STRINGS/CABOS ECONECTORES | D6: 1021088.42 | E6: 49802.06 | F6: 1070890.48
B7: 1.5 | C7: SKID STATION | D7: 3884159.164 | E7: 189444.052 | F7: 4073603.216
B8: 1.6 | C8: MÃO DE OBRA p/. MONTAGEM DA UFV | D8: 6193120.586 | E8: 302060.1908 | F8: 6495180.777
B9: 1.7 | C9: OBRAS CIVIS | D9: 1924988.609 | E9: 93888.43939 | F9: 2018877.049
B11: SUBTOTAL UFV (R$) | D11: =SUM(D3:D9) -> 29154082.59 | E11: =SUM(E3:E9) -> 1421946.76 | F11: =SUM(F3:F9) -> 30576029.35
B14: 2 - DEMAIS COMPONENTES | D14: 1º CAPEX (R$) | E14: 2º CAPEX - ANO 13 (R$) | F14: CAPEX TOTAL (R$)
B15: 2.1 | C15: ELABORAÇÃO DE PROJETO EXECUTIVO | D15: 492448.1797 | E15: 24018.42319 | F15: =D15+E15 -> 516466.6028
B16: 2.2 | C16: AQUISIÇÃO DO TERRENO | D16: 400335.9398 | E16: 19525.78651 | F16: 419861.7263
B17: 2.3 | C17: REDE DE MÉDIA TENSÃO | D17: 1571550 | E17: 76650 | F17: 1648200
B18: 2.4 | C18: CABINE DE MÉDIA TENSÃO | D18: 3111480.414 | E18: 151757.802 | F18: 3263238.216
B19: 2.5 | C19: CUSTO COM CONEXÃO | D19: 838160 | E19: 40880 | F19: 879040
B20: 2.6 | C20: ESTAÇÃO SOLARIMÉTRICA | D20: 1005687.23 | E20: 49050.89 | F20: 1054738.12
B21: 2.7 | C21: LICENÇAS E SEGUROS | D21: 161164.8588 | E21: 7860.574863 | F21: 169025.4337
B23: SUBTOTAL (R$) | D23: =SUM(D15:D21) -> 7580826.622 | E23: =SUM(E15:E21) -> 369743.4766 | F23: =SUM(F15:F21) -> 7950570.099
B25: TOTAL GERAL (R$) | D25: =D11+D23 -> 36734909.21 | E25: =E11+E23 -> 1791690.237 | F25: =F11+F23 -> 38526599.45

Sheet 4. OPEX
B2: OPEX GRUPO 1 | D2: ANO 2 | E2: ANO 3 | F2: ANO 4 | G2: ANO 5 | H2: ANO 6 | I2: ANO 7 | J2: ANO 8 | K2: ANO 9 | L2: ANO 10 | M2: ANO 11 | N2: ANO 12 | O2: ANO 13 | P2: ANO 14 | Q2: ANO 15 | R2: ANO 16 | S2: ANO 17 | T2: ANO 18 | U2: ANO 19 | V2: ANO 20 | W2: ANO 21 | X2: ANO 22 | Y2: ANO 23 | Z2: ANO 24 | AA2: ANO 25 | AB2: OPEX TOTAL
B4: 1 | C4: Gerência e diretoria (R$) | D4: ='[2]PAINEL DE CONTROLE'!E51*12 -> 153847.92 | E4: =D4 -> 153847.92 | F4: =E4 -> 153847.92 | G4: 153847.92 | H4: 153847.92 | I4: 153847.92 | J4: 153847.92 | K4: 153847.92 | L4: 153847.92 | M4: 153847.92 | N4: 153847.92 | O4: 153847.92 | P4: 153847.92 | Q4: 153847.92 | R4: 153847.92 | S4: 153847.92 | T4: 153847.92 | U4: 153847.92 | V4: =U4 -> 153847.92 | W4: 153847.92 | X4: 153847.92 | Y4: 153847.92 | Z4: 153847.92 | AA4: 153847.92 | AB4: =SUM(D4:AA4) -> 3692350.08
B5: 2 | C5: Operação e manutenção (R$) | D5: =382730.21 -> 382730.21 | E5: =D5 -> 382730.21 | F5: 382730.21 | G5: 382730.21 | H5: 382730.21 | I5: 382730.21 | J5: 382730.21 | K5: 382730.21 | L5: 382730.21 | M5: 382730.21 | N5: 382730.21 | O5: 382730.21 | P5: 382730.21 | Q5: 382730.21 | R5: 382730.21 | S5: 382730.21 | T5: 382730.21 | U5: 382730.21 | V5: 382730.21 | W5: 382730.21 | X5: 382730.21 | Y5: 382730.21 | Z5: 382730.21 | AA5: 382730.21 | AB5: =SUM(D5:AA5) -> 9185525.04
B6: 3 | C6: Despesa sócio-ambientais (R$) | D6: ='[2]PAINEL DE CONTROLE'!E53*12 -> 1335.833333 | E6: 1335.833333 | F6: 1335.833333 | G6: 1335.833333 | H6: 1335.833333 | I6: 1335.833333 | J6: 1335.833333 | K6: 1335.833333 | L6: 1335.833333 | M6: 1335.833333 | N6: 1335.833333 | O6: 1335.833333 | P6: 1335.833333 | Q6: 1335.833333 | R6: 1335.833333 | S6: 1335.833333 | T6: 1335.833333 | U6: 1335.833333 | V6: 1335.833333 | W6: 1335.833333 | X6: 1335.833333 | Y6: 1335.833333 | Z6: 1335.833333 | AA6: 1335.833333 | AB6: =SUM(D6:AA6) -> 32060
B7: 4 | C7: Seguros e garantias (R$) | D7: ='[2]PAINEL DE CONTROLE'!E54*12 -> 31396.86848 | E7: 31396.86848 | F7: 31396.86848 | G7: 31396.86848 | H7: 31396.86848 | I7: 31396.86848 | J7: 31396.86848 | K7: 31396.86848 | L7: 31396.86848 | M7: 31396.86848 | N7: 31396.86848 | O7: 31396.86848 | P7: 31396.86848 | Q7: 31396.86848 | R7: 31396.86848 | S7: 31396.86848 | T7: 31396.86848 | U7: 31396.86848 | V7: 31396.86848 | W7: 31396.86848 | X7: 31396.86848 | Y7: 31396.86848 | Z7: 31396.86848 | AA7: 31396.86848 | AB7: =SUM(D7:AA7) -> 753524.8435
B8: 5 | C8: Segurança patrimonial (R$) | D8: ='[2]PAINEL DE CONTROLE'!E55*12 -> 54000 | E8: 54000 | F8: 54000 | G8: 54000 | H8: 54000 | I8: 54000 | J8: 54000 | K8: 54000 | L8: 54000 | M8: 54000 | N8: 54000 | O8: 54000 | P8: 54000 | Q8: 54000 | R8: 54000 | S8: 54000 | T8: 54000 | U8: 54000 | V8: 54000 | W8: 54000 | X8: 54000 | Y8: 54000 | Z8: 54000 | AA8: 54000 | AB8: =SUM(D8:AA8) -> 1296000
B10: TOTAL (R$) | D10: =SUM(D4:D9) -> 623310.8318 | E10: =SUM(E4:E8) -> 623310.8318 | F10: 623310.8318 | G10: 623310.8318 | H10: 623310.8318 | I10: 623310.8318 | J10: 623310.8318 | K10: 623310.8318 | L10: 623310.8318 | M10: 623310.8318 | N10: 623310.8318 | O10: 623310.8318 | P10: 623310.8318 | Q10: 623310.8318 | R10: 623310.8318 | S10: 623310.8318 | T10: 623310.8318 | U10: 623310.8318 | V10: 623310.8318 | W10: 623310.8318 | X10: 623310.8318 | Y10: 623310.8318 | Z10: 623310.8318 | AA10: 623310.8318 | AB10: =SUM(AB4:AB8) -> 14959459.96

Sheet 5. CMPC (WACC)
C2: Custo Médio Ponderado de Capital - CMPC (WACC)
C4: Cálculo de CMPC (WACC)
C5: CMPC= Ke x E/V + Kd x (1 – T) x D/V | G5: =G6*G7+G8*(1-G9)*G10 -> 0.0822892297
C6: Ke = Custo do Capital Próprio Real alavancado | F6: Kerl | G6: =G17 -> 0.148914599
C7: E/V = % Participação do Capital Próprio | F7: E/V | G7: =1-G27 -> 0.3 | I7: Referência | J7: Fonte
C8: Kd = Custo do Capital de Terceiros Real | F8: Kd | G8: 0.065 | I8: Boletim Informativo de Debêntures Incentivadas | J8: https://www.gov.br/economia/pt-br/centrais-de-conteudo/publicacoes/boletins/boletim-de-debentures-incentivadas/2022/boletim-de-debentures-incentivadas-dezembro-2022
C9: T = Taxa de Imposto sobre Sociedades | F9: T | G9: 0.1733 | I9: Alíquota lucro real | J9: http://www.cebrasse.org.br/downloads/html/lucro_presumido_real.html
C10: D/V = % Participação do Capital de Terceiros | F10: D/V | G10: 0.7
C12: Cálculo de Custo de Capital Próprio (Capital Asset Price Model - CAPM)
C13: CAPM: Ke = Rf + beta*PRM + Rp
C14: Custo de Capital Próprio Nominal (Rf+βd*PRM+Rp) | F14: Ke | G14: =(G22+(G26*(G24-G23)))+G31 -> 0.10761
C15: Custo de Capital Próprio Real {[(1+Ke)/(1+IPCA)]-1} | F15: Ker | G15: =((1+G14)/(1+G30))-1 -> 0.03611786717
C16: Custo de Capital Próprio Nominal Alavancado [Rf+βl(Rm-R'f)+Rp] | F16: Kel | G16: =(G22+(G28*(G24-G23)))+G31 -> 0.2281897063
C17: Custo de Capital Próprio Real Alavancado {[(1+Kerl)/(1+IPCA)]-1} | F17: Kerl | G17: =((1+G16)/(1+G30))-1 -> 0.148914599
I20: Referência | J20: Fonte
C21: Parâmetros
C22: Taxa nominal livre de risco (US T-Bond) | F22: Rf | G22: 0.0242 | I22: Taxa de retorno do Treasury Bond 10Y Média anual do período 2008-2022 | J22: macrotrends.net
C23: Taxa nominal livre de risco (US T-Bond) | F23: R’f | G23: 0.0373 | I23: Taxa de retorno do Treasury Bond 10Y Média móvel de 12 meses do final do período 1960-2022 | J23: macrotends.net
C24: Retorno da carteira de mercado – S&P500 | F24: Rm | G24: 0.1266 | I24: Mediana do período 1970-2023 – S&P Dow Jones | J24: macrotrends.net
C25: Prêmio de risco do mercado | F25: PRM | G25: =G24-G23 -> 0.0893 | I25: Rm-R’f
C26: Beta médio desalavancado | F26: βd | G26: 0.7 | I26: Green & Renewable Energy - unlevered beta (05/01/2023) | J26: https://pages.stern.nyu.edu/~adamodar/
C27: Alavancagem | F27: D/V | G27: =G10 -> 0.7
C28: Beta alavancado | F28: βl | G28: =G26*(1+(1-G29)*(G10/G7)) -> 2.050276667
C29: Impostos | F29: T | G29: 0.1733 | I29: Alíquota lucro real | J29: http://www.cebrasse.org.br/downloads/html/lucro_presumido_real.html
C30: Inflação Brasil IPCA | F30: IPCA | G30: 0.069 | I30: IPCA média aritmética da variação percentual acumulada no ano – 2000-2022 | J30: https://www.ibge.gov.br/estatisticas/economicas/precos-e-custos/9256-indice-nacional-de-precos-ao-consumidor-amplo.html?=&t=downloads
C31: Prêmio de risco-país | F31: Rp | G31: 0.0209 | I31: EMBI+_Risco Brasil do dia 8/9/2023 | J31: http://www.ipeadata.gov.br/ExibeSerie.aspx?serid=40940&module=M

Sheet 6. CONTRAPRESTAÇÃO
B2: Cálculo da Contraprestação | Grupo 1
B4: Premissas Econômicas
B5: TMA (CMPC) | D5: =IF('2. SIMULADOR'!C11=0,'2. SIMULADOR'!C10,'2. SIMULADOR'!C9) -> 0.0822892297
B6: Prazo de Concessão (anos) | D6: ='2. SIMULADOR'!C14 -> 25
B7: Regime Contábil | D7: Lucro Presumido
B8: Impostos (Lucro Presumido) | D8: 0.1733
B10: CUSTOS DE INVESTIMENTO
B11: 1º CAPEX (R$) | D11: ='2. SIMULADOR'!C5 -> 36734909.21
B12: 2º CAPEX (R$) | C12: ='2. SIMULADOR'!C6 -> 1791690.237
B13: 2º CAPEX Descontado (R$) | D13: =C12/(1+D5)^12 -> 693653.9881
B14: CAPEX Total (R$) | D14: =SUM(D11:D13) -> 37428563.2
B16: Custo anualizado
B17: CAPEX anualizado (CAE) (R$) | D17: =D14*((D5*(1+D5)^24)/((1+D5)^24-1)) -> 3623003.736
B18: OPEX (anual) (R$) | D18: ='4. OPEX'!D10 -> 623310.8318
B19: Total (R$) | D19: =D17+D18 -> 4246314.568
B21: Contraprestação anual
B22: CUSTO ANUALIZADO (R$) | D22: =D19 -> 4246314.568
B23: Impostos (R$) | D23: =(D19/(1-D8))-D22 -> 890149.1649
B24: VALOR DA CONTRAPRESTAÇÃO (R$) | D24: =SUM(D22:D23) -> 5136463.733

Sheet 7. VARIÁVEIS DE FINANCIAMENTO
B2: VARIÁVEIS DE FINANCIAMENTO | I2: ITENS FINANCIÁVEIS | J2: VALOR (R$)
B4: LINHA DE FINANCIAMENTO | E4: BNDES FINAME Baixo Carbono | H4: 1- USINA SOLAR FOTOVOLTAICA
H5: 1.1 | I5: PAINEIS | J5: ='3. CAPEX '!F3 -> 10877624.3
B6: Taxa de juros | E6: (IPCA + parcela fixa TLP) + remuneração BNDES | H6: 1.2 | I6: INVERSORES | J6: ='3. CAPEX '!F4 -> 1861496.216
B7: Sistema de amortização | E7: SAC | H7: 1.3 | I7: SUPORTES RACK | J7: ='3. CAPEX '!F5 -> 4178357.314
B8: Remuneração BNDES | E8: 0,95% a.a. | H8: 1.4 | I8: STRINGS/CABOS ECONECTORES | J8: ='3. CAPEX '!F6 -> 1070890.48
B9: Mês de Referência | E9: 2023-10-01 | H9: 1.5 | I9: SKID STATION | J9: ='3. CAPEX '!F7 -> 4073603.216
B10: Participação do BNDES | E10: 100% dos itens financiáveis
B11: PRAZO | E11: Até 10 anos, com carência de até 2 anos. | H11: 2 - DEMAIS COMPONENTES
H12: 2.1 | I12: ELABORAÇÃO DE PROJETO EXECUTIVO | J12: ='3. CAPEX '!F15 -> 516466.6028
B13: CÁLCULO DA TAXA DE JUROS | H13: 2.3 | I13: REDE DE MÉDIA TENSÃO | J13: ='3. CAPEX '!F17 -> 1648200
B14: AGENTE FINANCEIRO | C14: 0 | H14: 2.4 | I14: CABINE DE MÉDIA TENSÃO | J14: ='3. CAPEX '!F18 -> 3263238.216
B15: IPCA | C15: 0.0026 | H15: 2.5 | I15: CUSTO COM CONEXÃO | J15: ='3. CAPEX '!F19 -> 879040
B16: TLP fixa | C16: 0.0514 | H16: 2.6 | I16: ESTAÇÃO SOLARIMÉTRICA | J16: ='3. CAPEX '!F20 -> 1054738.12
B17: BNDES | C17: 0.0095
B18: Taxa final de juros | C18: =SUM(C14:C17) -> 0.0635 | H18: 3 - TOTAL | J18: =SUM(J5:J16) -> 29423654.47
B21: CAPEX | C21: ALAVANCAGEM | D21: EMPRÉSTIMO (R$) | E21: ITENS FINANCIÁVEIS (R$) | F21: % DOS ITENS FINANCIÁVEIS
B22: ='2. SIMULADOR'!C4 -> 38526599.45 | C22: ='2. SIMULADOR'!C11 -> 0.7 | D22: =B22*C22 -> 26968619.62 | E22: =J18 -> 29423654.47 | F22: =D22/E22 -> 0.9165625448

Sheet 8. SIMULAÇÃO DE FINANCIAMENTO
B2: SIMULAÇÃO DE FINANCIAMENTO
B4: TAXA | C4: ='7. VARIÁVEIS DE FINANCIAMENTO'!C18 -> 0.0635 | D4: EMPRÉSTIMO | E4: ='7. VARIÁVEIS DE FINANCIAMENTO'!D22 -> 26968619.62
B6: ANO | C6: 1 | D6: 2 | E6: 3 | F6: 4 | G6: 5 | H6: 6 | I6: 7 | J6: 8 | K6: 9 | L6: 10 | M6: 11 | N6: 12 | O6: 13
B7: Saldo Devedor (R$) | C7: ='7. VARIÁVEIS DE FINANCIAMENTO'!D22 -> 26968619.62 | D7: =C7 -> 26968619.62 | E7: =D7 -> 26968619.62 | F7: =E7-E8 -> 24271757.65 | G7: =F7-F8 -> 21574895.69 | H7: 18878033.73 | I7: 16181171.77 | J7: 13484309.81 | K7: 10787447.85 | L7: 8090585.885 | M7: 5393723.923 | N7: 2696861.962 | O7: 0
B8: Amortização (R$) | E8: =C7/10 -> 2696861.962 | F8: =E8 -> 2696861.962 | G8: =F8 -> 2696861.962 | H8: 2696861.962 | I8: 2696861.962 | J8: 2696861.962 | K8: 2696861.962 | L8: 2696861.962 | M8: 2696861.962 | N8: 2696861.962
B9: Juros (R$) | C9: =$C$4*C7 -> 1712507.346 | D9: =$C$4*D7 -> 1712507.346 | E9: =$C$4*E7 -> 1712507.346 | F9: =$C$4*F7 -> 1541256.611 | G9: =$C$4*G7 -> 1370005.876 | H9: 1198755.142 | I9: 1027504.407 | J9: 856253.6728 | K9: 685002.9382 | L9: 513752.2037 | M9: 342501.4691 | N9: 171250.7346
B10: Prestação (R$) | C10: =SUM(C8:C9) -> 1712507.346 | D10: =SUM(D8:D9) -> 1712507.346 | E10: 4409369.307 | F10: 4238118.573 | G10: 4066867.838 | H10: 3895617.104 | I10: 3724366.369 | J10: 3553115.634 | K10: 3381864.9 | L10: 3210614.165 | M10: 3039363.431 | N10: 2868112.696

Sheet 9. FLUXO DE CAIXA
B2: Fluxo de caixa (Lucro Presumido) | C2: ANO 1 | D2: ANO 2 | E2: ANO 3 | F2: ANO 4 | G2: ANO 5 | H2: ANO 6 | I2: ANO 7 | J2: ANO 8 | K2: ANO 9 | L2: ANO 10 | M2: ANO 11 | N2: ANO 12 | O2: ANO 13 | P2: ANO 14 | Q2: ANO 15 | R2: ANO 16 | S2: ANO 17 | T2: ANO 18 | U2: ANO 19 | V2: ANO 20 | W2: ANO 21 | X2: ANO 22 | Y2: ANO 23 | Z2: ANO 24 | AA2: ANO 25
B4: Receita Operacional Bruta (ROB) | D4: =D5 -> 5136463.733 | E4: =E5 -> 5136463.733 | F4: 5136463.733 | G4: 5136463.733 | H4: 5136463.733 | I4: 5136463.733 | J4: 5136463.733 | K4: 5136463.733 | L4: 5136463.733 | M4: 5136463.733 | N4: 5136463.733 | O4: 5136463.733 | P4: 5136463.733 | Q4: 5136463.733 | R4: 5136463.733 | S4: 5136463.733 | T4: 5136463.733 | U4: 5136463.733 | V4: 5136463.733 | W4: 5136463.733 | X4: 5136463.733 | Y4: 5136463.733 | Z4: 5136463.733 | AA4: 5136463.733
B5: Contraprestação do poder concedente | D5: ='6. CONTRAPRESTAÇÃO'!D24 -> 5136463.733 | E5: =D5 -> 5136463.733 | F5: 5136463.733 | G5: 5136463.733 | H5: 5136463.733 | I5: =H5 -> 5136463.733 | J5: =I5 -> 5136463.733 | K5: 5136463.733 | L5: 5136463.733 | M5: 5136463.733 | N5: 5136463.733 | O5: 5136463.733 | P5: 5136463.733 | Q5: 5136463.733 | R5: 5136463.733 | S5: 5136463.733 | T5: 5136463.733 | U5: 5136463.733 | V5: 5136463.733 | W5: 5136463.733 | X5: 5136463.733 | Y5: 5136463.733 | Z5: 5136463.733 | AA5: 5136463.733
B7: Impostos
B8: PIS (0,65%) | D8: =D5*0.0065*-1 -> -33387.01427 | E8: =-(E5*0.0065) -> -33387.01427 | F8: -33387.01427 | G8: -33387.01427 | H8: -33387.01427 | I8: -33387.01427 | J8: -33387.01427 | K8: -33387.01427 | L8: -33387.01427 | M8: -33387.01427 | N8: -33387.01427 | O8: -33387.01427 | P8: -33387.01427 | Q8: -33387.01427 | R8: -33387.01427 | S8: -33387.01427 | T8: -33387.01427 | U8: -33387.01427 | V8: -33387.01427 | W8: -33387.01427 | X8: -33387.01427 | Y8: -33387.01427 | Z8: -33387.01427 | AA8: -33387.01427
B9: COFINS (3,00%) | D9: =-(D5*0.03) -> -154093.912 | E9: =-(E5*0.03) -> -154093.912 | F9: -154093.912 | G9: -154093.912 | H9: -154093.912 | I9: -154093.912 | J9: -154093.912 | K9: -154093.912 | L9: -154093.912 | M9: -154093.912 | N9: -154093.912 | O9: -154093.912 | P9: -154093.912 | Q9: -154093.912 | R9: -154093.912 | S9: -154093.912 | T9: -154093.912 | U9: -154093.912 | V9: -154093.912 | W9: -154093.912 | X9: -154093.912 | Y9: -154093.912 | Z9: -154093.912 | AA9: -154093.912
B10: ISS (3,00%) | D10: =0.03*D5*-1 -> -154093.912 | E10: =D10 -> -154093.912 | F10: =E10 -> -154093.912 | G10: -154093.912 | H10: -154093.912 | I10: =H10 -> -154093.912 | J10: =I10 -> -154093.912 | K10: -154093.912 | L10: -154093.912 | M10: -154093.912 | N10: -154093.912 | O10: -154093.912 | P10: -154093.912 | Q10: -154093.912 | R10: -154093.912 | S10: -154093.912 | T10: -154093.912 | U10: -154093.912 | V10: -154093.912 | W10: -154093.912 | X10: -154093.912 | Y10: -154093.912 | Z10: -154093.912 | AA10: -154093.912
B12: Receita Operacional Líquida (ROL) | D12: =D5+D8+D9+D10 -> 4794888.895 | E12: =E5+E8+E9+E10 -> 4794888.895 | F12: 4794888.895 | G12: 4794888.895 | H12: 4794888.895 | I12: 4794888.895 | J12: 4794888.895 | K12: 4794888.895 | L12: 4794888.895 | M12: 4794888.895 | N12: 4794888.895 | O12: 4794888.895 | P12: 4794888.895 | Q12: 4794888.895 | R12: 4794888.895 | S12: 4794888.895 | T12: 4794888.895 | U12: 4794888.895 | V12: 4794888.895 | W12: 4794888.895 | X12: 4794888.895 | Y12: 4794888.895 | Z12: 4794888.895 | AA12: 4794888.895
B13: (-) Custos de operação e manutenção (OPEX) | D13: =-1*'4. OPEX'!D10 -> -623310.8318 | E13: =D13 -> -623310.8318 | F13: -623310.8318 | G13: -623310.8318 | H13: -623310.8318 | I13: =H13 -> -623310.8318 | J13: =I13 -> -623310.8318 | K13: -623310.8318 | L13: -623310.8318 | M13: -623310.8318 | N13: -623310.8318 | O13: -623310.8318 | P13: -623310.8318 | Q13: -623310.8318 | R13: -623310.8318 | S13: -623310.8318 | T13: -623310.8318 | U13: -623310.8318 | V13: -623310.8318 | W13: -623310.8318 | X13: -623310.8318 | Y13: -623310.8318 | Z13: -623310.8318 | AA13: -623310.8318
B14: (-) IRPJ | D14: =-(D4*0.32)*0.15 -> -246550.2592 | E14: -246550.2592 | F14: -246550.2592 | G14: -246550.2592 | H14: -246550.2592 | I14: -246550.2592 | J14: -246550.2592 | K14: -246550.2592 | L14: -246550.2592 | M14: -246550.2592 | N14: -246550.2592 | O14: -246550.2592 | P14: -246550.2592 | Q14: -246550.2592 | R14: -246550.2592 | S14: -246550.2592 | T14: -246550.2592 | U14: -246550.2592 | V14: -246550.2592 | W14: -246550.2592 | X14: -246550.2592 | Y14: -246550.2592 | Z14: -246550.2592 | AA14: -246550.2592
B15: (-) IRPJ do excedente | D15: =-(0.32*D5-240000)*0.1 -> -140366.8395 | E15: -140366.8395 | F15: -140366.8395 | G15: -140366.8395 | H15: -140366.8395 | I15: -140366.8395 | J15: -140366.8395 | K15: -140366.8395 | L15: -140366.8395 | M15: -140366.8395 | N15: -140366.8395 | O15: -140366.8395 | P15: -140366.8395 | Q15: -140366.8395 | R15: -140366.8395 | S15: -140366.8395 | T15: -140366.8395 | U15: -140366.8395 | V15: -140366.8395 | W15: -140366.8395 | X15: -140366.8395 | Y15: -140366.8395 | Z15: -140366.8395 | AA15: -140366.8395
B16: (-) CSLL | D16: =-0.32*D4*0.09 -> -147930.1555 | E16: =-0.32*E5*0.09 -> -147930.1555 | F16: -147930.1555 | G16: -147930.1555 | H16: -147930.1555 | I16: -147930.1555 | J16: -147930.1555 | K16: -147930.1555 | L16: -147930.1555 | M16: -147930.1555 | N16: -147930.1555 | O16: -147930.1555 | P16: -147930.1555 | Q16: -147930.1555 | R16: -147930.1555 | S16: -147930.1555 | T16: -147930.1555 | U16: -147930.1555 | V16: -147930.1555 | W16: -147930.1555 | X16: -147930.1555 | Y16: -147930.1555 | Z16: -147930.1555 | AA16: -147930.1555
B18: LUCRO LIQUIDO APÓS IR | D18: =SUM(D12:D16) -> 3636730.809 | E18: =SUM(E12:E16) -> 3636730.809 | F18: 3636730.809 | G18: 3636730.809 | H18: 3636730.809 | I18: 3636730.809 | J18: 3636730.809 | K18: 3636730.809 | L18: 3636730.809 | M18: 3636730.809 | N18: 3636730.809 | O18: 3636730.809 | P18: 3636730.809 | Q18: 3636730.809 | R18: 3636730.809 | S18: 3636730.809 | T18: 3636730.809 | U18: 3636730.809 | V18: 3636730.809 | W18: 3636730.809 | X18: 3636730.809 | Y18: 3636730.809 | Z18: 3636730.809 | AA18: 3636730.809
B19: (-) CAPEX(Investimentos) | C19: =-1*'3. CAPEX '!D25 -> -36734909.21 | O19: =-1*'6. CONTRAPRESTAÇÃO'!C12 -> -1791690.237
B21: Fluxo de caixa do projeto | C21: =C19 -> -36734909.21 | D21: =D18+D19 -> 3636730.809 | E21: =E18+E19 -> 3636730.809 | F21: 3636730.809 | G21: 3636730.809 | H21: 3636730.809 | I21: 3636730.809 | J21: 3636730.809 | K21: 3636730.809 | L21: 3636730.809 | M21: 3636730.809 | N21: 3636730.809 | O21: 1845040.572 | P21: 3636730.809 | Q21: 3636730.809 | R21: 3636730.809 | S21: 3636730.809 | T21: 3636730.809 | U21: 3636730.809 | V21: 3636730.809 | W21: 3636730.809 | X21: 3636730.809 | Y21: 3636730.809 | Z21: 3636730.809 | AA21: 3636730.809
B22: Fluxo de caixa acumulado | C22: =C21 -> -36734909.21 | D22: =C22+D21 -> -33098178.41 | E22: =D22+E21 -> -29461447.6 | F22: -25824716.79 | G22: -22187985.98 | H22: -18551255.17 | I22: =H22+I21 -> -14914524.36 | J22: =I22+J21 -> -11277793.55 | K22: -7641062.744 | L22: -4004331.935 | M22: -367601.1263 | N22: 3269129.683 | O22: 5114170.255 | P22: 8750901.064 | Q22: 12387631.87 | R22: 16024362.68 | S22: 19661093.49 | T22: 23297824.3 | U22: 26934555.11 | V22: 30571285.92 | W22: 34208016.73 | X22: 37844747.53 | Y22: 41481478.34 | Z22: 45118209.15 | AA22: 48754939.96
B23: (+) Captação de empréstimo | C23: ='7. VARIÁVEIS DE FINANCIAMENTO'!D22 -> 26968619.62
B24: (-) Despesas financeiras(juros de empréstimo) | D24: =-1*'8. SIMULAÇÃO DE FINANCIAMENTO'!C9 -> -1712507.346 | E24: =-1*'8. SIMULAÇÃO DE FINANCIAMENTO'!D9 -> -1712507.346 | F24: =-1*'8. SIMULAÇÃO DE FINANCIAMENTO'!E9 -> -1712507.346 | G24: =-1*'8. SIMULAÇÃO DE FINANCIAMENTO'!F9 -> -1541256.611 | H24: =-1*'8. SIMULAÇÃO DE FINANCIAMENTO'!G9 -> -1370005.876 | I24: =-1*'8. SIMULAÇÃO DE FINANCIAMENTO'!H9 -> -1198755.142 | J24: =-1*'8. SIMULAÇÃO DE FINANCIAMENTO'!I9 -> -1027504.407 | K24: =-1*'8. SIMULAÇÃO DE FINANCIAMENTO'!J9 -> -856253.6728 | L24: =-1*'8. SIMULAÇÃO DE FINANCIAMENTO'!K9 -> -685002.9382 | M24: =-1*'8. SIMULAÇÃO DE FINANCIAMENTO'!L9 -> -513752.2037 | N24: =-1*'8. SIMULAÇÃO DE FINANCIAMENTO'!M9 -> -342501.4691 | O24: =-1*'8. SIMULAÇÃO DE FINANCIAMENTO'!N9 -> -171250.7346
B25: (-) Amortização do empréstimo | F25: =C23/10*-1 -> -2696861.962 | G25: =F25 -> -2696861.962 | H25: =G25 -> -2696861.962 | I25: =H25 -> -2696861.962 | J25: =I25 -> -2696861.962 | K25: -2696861.962 | L25: -2696861.962 | M25: -2696861.962 | N25: -2696861.962 | O25: -2696861.962
B27: Indicadores do projeto
B28: TIR do projeto | C28: =IRR(C21:AA21) -> 0.08276031297
B29: VPL do projeto | C29: =NPV(C43,D21:AA21)+C21 -> 141811.7781
B30: Payback simples(contagem) | D30: =IF(D22<0,1,IF(C22>0,0,-C22/D21)) -> 1 | E30: 1 | F30: 1 | G30: 1 | H30: 1 | I30: =IF(I22<0,1,IF(H22>0,0,-H22/I21)) -> 1 | J30: =IF(J22<0,1,IF(I22>0,0,-I22/J21)) -> 1 | K30: 1 | L30: 1 | M30: 1 | N30: 0.1010801034 | O30: 0 | P30: 0 | Q30: 0 | R30: 0 | S30: 0 | T30: 0 | U30: 0 | V30: 0 | W30: 0 | X30: 0 | Y30: 0 | Z30: 0 | AA30: 0
B31: Payback do projeto | C31: =SUM(D30:AA30) -> 10.1010801
B33: Fluxo de caixa livre do acionista | C33: =C19+C23 -> -9766289.599 | D33: =D21+D24+D25 -> 1924223.463 | E33: 1924223.463 | F33: -772638.4984 | G33: -601387.7638 | H33: -430137.0292 | I33: -258886.2947 | J33: -87635.56012 | K33: 83615.17444 | L33: 254865.909 | M33: 426116.6436 | N33: 597367.3781 | O33: -1023072.124 | P33: 3636730.809 | Q33: 3636730.809 | R33: 3636730.809 | S33: 3636730.809 | T33: 3636730.809 | U33: 3636730.809 | V33: 3636730.809 | W33: 3636730.809 | X33: 3636730.809 | Y33: 3636730.809 | Z33: 3636730.809 | AA33: 3636730.809
B34: Fluxo de caixa acumulado | C34: =C33 -> -9766289.599 | D34: =C34+D33 -> -7842066.136 | E34: -5917842.672 | F34: -6690481.171 | G34: -7291868.935 | H34: -7722005.964 | I34: =H34+I33 -> -7980892.258 | J34: =I34+J33 -> -8068527.819 | K34: -7984912.644 | L34: -7730046.735 | M34: -7303930.092 | N34: -6706562.713 | O34: -7729634.837 | P34: -4092904.029 | Q34: -456173.2196 | R34: 3180557.589 | S34: 6817288.398 | T34: 10454019.21 | U34: 14090750.02 | V34: 17727480.82 | W34: 21364211.63 | X34: 25000942.44 | Y34: 28637673.25 | Z34: 32274404.06 | AA34: 35911134.87
B35: Payback simples(contagem) | D35: =IF(D34<0,1,IF(C34>0,0,-C34/D33)) -> 1 | E35: =IF(E34<0,1,IF(D34>0,0,-D34/E33)) -> 1 | F35: 1 | G35: 1 | H35: 1 | I35: =IF(I34<0,1,IF(H34>0,0,-H34/I33)) -> 1 | J35: =IF(J34<0,1,IF(I34>0,0,-I34/J33)) -> 1 | K35: 1 | L35: 1 | M35: 1 | N35: 1 | O35: 1 | P35: 1 | Q35: 1 | R35: 0.1254349699 | S35: 0 | T35: 0 | U35: 0 | V35: 0 | W35: 0 | X35: 0 | Y35: 0 | Z35: 0 | AA35: 0
B37: Indicadores do acionista
B38: TIR do acionista | C38: =IRR(C33:AA33) -> 0.1017371708
B39: VPL do acionista | C39: =NPV(C43,D33:AA33)+C33 -> 2808244.049
B40: Payback do acionista | C40: =SUM(D35:AA35) -> 14.12543497
B41: Índice de Cobertura do Serviço da Dívida (ICSD) | C41: =AVERAGE(D41:M41) -> 1.19659968 | D41: =IF(D24<0,-((D12+D13)+SUM(D14:D16))/SUM(D24,D25),0) -> 2.123629319 | E41: =IF(E24<0,-((E12+E13)+SUM(E14:E16))/SUM(E24,E25),0) -> 2.123629319 | F41: 0.8247734666 | G41: 0.8581002977 | H41: 0.8942338314 | I41: 0.9335442145 | J41: 0.9764696726 | K41: 1.023532917 | L41: 1.075362534 | M41: 1.132721225 | N41: 1.196543583 | O41: 1.267987417 | P41: 0 | Q41: 0 | R41: 0 | S41: 0 | T41: 0 | U41: 0 | V41: 0 | W41: 0 | X41: 0 | Y41: 0 | Z41: 0 | AA41: 0
B43: TMA(CMPC) | C43: ='5. CMPC (WACC)'!G5 -> 0.0822892297

Sheet 10. DRE
B2: DRE | C2: ANO 1 | D2: ANO 2 | E2: ANO 3 | F2: ANO 4 | G2: ANO 5 | H2: ANO 6 | I2: ANO 7 | J2: ANO 8 | K2: ANO 9 | L2: ANO 10 | M2: ANO 11 | N2: ANO 12 | O2: ANO 13 | P2: ANO 14 | Q2: ANO 15 | R2: ANO 16 | S2: ANO 17 | T2: ANO 18 | U2: ANO 19 | V2: ANO 20 | W2: ANO 21 | X2: ANO 22 | Y2: ANO 23 | Z2: ANO 24 | AA2: ANO 25
B4: Receita Bruta | D4: =D5 -> 5136463.733 | E4: =E5 -> 5136463.733 | F4: 5136463.733 | G4: 5136463.733 | H4: 5136463.733 | I4: 5136463.733 | J4: 5136463.733 | K4: 5136463.733 | L4: 5136463.733 | M4: 5136463.733 | N4: 5136463.733 | O4: 5136463.733 | P4: 5136463.733 | Q4: 5136463.733 | R4: 5136463.733 | S4: 5136463.733 | T4: 5136463.733 | U4: 5136463.733 | V4: 5136463.733 | W4: 5136463.733 | X4: 5136463.733 | Y4: 5136463.733 | Z4: 5136463.733 | AA4: 5136463.733
B5: Receita da Contraprestação | D5: ='9. FLUXO DE CAIXA '!D5 -> 5136463.733 | E5: =D5 -> 5136463.733 | F5: =E5 -> 5136463.733 | G5: 5136463.733 | H5: 5136463.733 | I5: 5136463.733 | J5: 5136463.733 | K5: 5136463.733 | L5: 5136463.733 | M5: 5136463.733 | N5: 5136463.733 | O5: 5136463.733 | P5: 5136463.733 | Q5: 5136463.733 | R5: 5136463.733 | S5: 5136463.733 | T5: 5136463.733 | U5: 5136463.733 | V5: 5136463.733 | W5: 5136463.733 | X5: 5136463.733 | Y5: 5136463.733 | Z5: 5136463.733 | AA5: 5136463.733
B7: Tributos
B8: PIS (0,65%) | D8: =D5*-1*0.0065 -> -33387.01427 | E8: =D8 -> -33387.01427 | F8: =E8 -> -33387.01427 | G8: -33387.01427 | H8: -33387.01427 | I8: -33387.01427 | J8: -33387.01427 | K8: -33387.01427 | L8: -33387.01427 | M8: -33387.01427 | N8: -33387.01427 | O8: -33387.01427 | P8: -33387.01427 | Q8: -33387.01427 | R8: -33387.01427 | S8: -33387.01427 | T8: -33387.01427 | U8: -33387.01427 | V8: -33387.01427 | W8: -33387.01427 | X8: -33387.01427 | Y8: -33387.01427 | Z8: -33387.01427 | AA8: -33387.01427
B9: COFINS (3%) | D9: =-1*D5*0.03 -> -154093.912 | E9: =D9 -> -154093.912 | F9: =E9 -> -154093.912 | G9: -154093.912 | H9: -154093.912 | I9: -154093.912 | J9: -154093.912 | K9: -154093.912 | L9: -154093.912 | M9: -154093.912 | N9: -154093.912 | O9: -154093.912 | P9: -154093.912 | Q9: -154093.912 | R9: -154093.912 | S9: -154093.912 | T9: -154093.912 | U9: -154093.912 | V9: -154093.912 | W9: -154093.912 | X9: -154093.912 | Y9: -154093.912 | Z9: -154093.912 | AA9: -154093.912
B10: ISS (3%) | D10: =-1*D5*0.03 -> -154093.912 | E10: =D10 -> -154093.912 | F10: =E10 -> -154093.912 | G10: -154093.912 | H10: -154093.912 | I10: -154093.912 | J10: -154093.912 | K10: -154093.912 | L10: -154093.912 | M10: -154093.912 | N10: -154093.912 | O10: -154093.912 | P10: -154093.912 | Q10: -154093.912 | R10: -154093.912 | S10: -154093.912 | T10: -154093.912 | U10: -154093.912 | V10: -154093.912 | W10: -154093.912 | X10: -154093.912 | Y10: -154093.912 | Z10: -154093.912 | AA10: -154093.912
B12: Receita Líquida | D12: =D4+D7 -> 5136463.733 | E12: 5136463.733 | F12: 5136463.733 | G12: 5136463.733 | H12: 5136463.733 | I12: 5136463.733 | J12: 5136463.733 | K12: 5136463.733 | L12: 5136463.733 | M12: 5136463.733 | N12: 5136463.733 | O12: 5136463.733 | P12: 5136463.733 | Q12: 5136463.733 | R12: 5136463.733 | S12: 5136463.733 | T12: 5136463.733 | U12: 5136463.733 | V12: 5136463.733 | W12: 5136463.733 | X12: 5136463.733 | Y12: 5136463.733 | Z12: 5136463.733 | AA12: 5136463.733
B14: Custos Operacionais
B15: Custos de operação e manutenção (OPEX) | D15: =-1*'4. OPEX'!D10 -> -623310.8318 | E15: =D15 -> -623310.8318 | F15: =E15 -> -623310.8318 | G15: -623310.8318 | H15: -623310.8318 | I15: -623310.8318 | J15: -623310.8318 | K15: -623310.8318 | L15: -623310.8318 | M15: -623310.8318 | N15: -623310.8318 | O15: -623310.8318 | P15: -623310.8318 | Q15: -623310.8318 | R15: -623310.8318 | S15: -623310.8318 | T15: -623310.8318 | U15: -623310.8318 | V15: -623310.8318 | W15: -623310.8318 | X15: -623310.8318 | Y15: -623310.8318 | Z15: -623310.8318 | AA15: -623310.8318
B17: Lucro operacional | D17: =D12+D15 -> 4513152.901 | E17: =E12+E15 -> 4513152.901 | F17: 4513152.901 | G17: 4513152.901 | H17: 4513152.901 | I17: 4513152.901 | J17: 4513152.901 | K17: 4513152.901 | L17: 4513152.901 | M17: 4513152.901 | N17: 4513152.901 | O17: 4513152.901 | P17: 4513152.901 | Q17: 4513152.901 | R17: 4513152.901 | S17: 4513152.901 | T17: 4513152.901 | U17: 4513152.901 | V17: 4513152.901 | W17: 4513152.901 | X17: 4513152.901 | Y17: 4513152.901 | Z17: 4513152.901 | AA17: 4513152.901
B19: Despesas Financeiras
B20: Juros | D20: ='9. FLUXO DE CAIXA '!D24 -> -1712507.346 | E20: ='9. FLUXO DE CAIXA '!E24 -> -1712507.346 | F20: ='9. FLUXO DE CAIXA '!F24 -> -1712507.346 | G20: ='9. FLUXO DE CAIXA '!G24 -> -1541256.611 | H20: ='9. FLUXO DE CAIXA '!H24 -> -1370005.876 | I20: ='9. FLUXO DE CAIXA '!I24 -> -1198755.142 | J20: ='9. FLUXO DE CAIXA '!J24 -> -1027504.407 | K20: ='9. FLUXO DE CAIXA '!K24 -> -856253.6728 | L20: ='9. FLUXO DE CAIXA '!L24 -> -685002.9382 | M20: ='9. FLUXO DE CAIXA '!M24 -> -513752.2037 | N20: ='9. FLUXO DE CAIXA '!N24 -> -342501.4691 | O20: ='9. FLUXO DE CAIXA '!O24 -> -171250.7346
B21: Amortização | F21: ='9. FLUXO DE CAIXA '!F25 -> -2696861.962 | G21: =F21 -> -2696861.962 | H21: =G21 -> -2696861.962 | I21: -2696861.962 | J21: -2696861.962 | K21: -2696861.962 | L21: -2696861.962 | M21: -2696861.962 | N21: -2696861.962 | O21: -2696861.962
B23: Lucros antes dos impostos | D23: =D17+D20+D21 -> 2800645.556 | E23: =E17+E20+E21 -> 2800645.556 | F23: 103783.594 | G23: 275034.3286 | H23: 446285.0632 | I23: 617535.7977 | J23: 788786.5323 | K23: 960037.2669 | L23: 1131288.001 | M23: 1302538.736 | N23: 1473789.471 | O23: 1645040.205 | P23: 4513152.901 | Q23: 4513152.901 | R23: 4513152.901 | S23: 4513152.901 | T23: 4513152.901 | U23: 4513152.901 | V23: 4513152.901 | W23: 4513152.901 | X23: 4513152.901 | Y23: 4513152.901 | Z23: 4513152.901 | AA23: 4513152.901
B24: Imposto de Renda | D24: =-(D4*0.32)*0.15 -> -246550.2592 | E24: =-(E4*0.32)*0.15 -> -246550.2592 | F24: -246550.2592 | G24: -246550.2592 | H24: -246550.2592 | I24: -246550.2592 | J24: -246550.2592 | K24: -246550.2592 | L24: -246550.2592 | M24: -246550.2592 | N24: -246550.2592 | O24: -246550.2592 | P24: -246550.2592 | Q24: -246550.2592 | R24: -246550.2592 | S24: -246550.2592 | T24: -246550.2592 | U24: -246550.2592 | V24: -246550.2592 | W24: -246550.2592 | X24: -246550.2592 | Y24: -246550.2592 | Z24: -246550.2592 | AA24: -246550.2592
B25: Imposto de Renda sobre excedente | D25: =-(0.32*D4-240000)*0.1 -> -140366.8395 | E25: =-(0.32*E4-240000)*0.1 -> -140366.8395 | F25: -140366.8395 | G25: -140366.8395 | H25: -140366.8395 | I25: -140366.8395 | J25: -140366.8395 | K25: -140366.8395 | L25: -140366.8395 | M25: -140366.8395 | N25: -140366.8395 | O25: -140366.8395 | P25: -140366.8395 | Q25: -140366.8395 | R25: -140366.8395 | S25: -140366.8395 | T25: -140366.8395 | U25: -140366.8395 | V25: -140366.8395 | W25: -140366.8395 | X25: -140366.8395 | Y25: -140366.8395 | Z25: -140366.8395 | AA25: -140366.8395
B26: Contribuição Social | D26: =-(0.32*D4)*0.09 -> -147930.1555 | E26: =-(0.32*E4)*0.09 -> -147930.1555 | F26: -147930.1555 | G26: -147930.1555 | H26: -147930.1555 | I26: -147930.1555 | J26: -147930.1555 | K26: -147930.1555 | L26: -147930.1555 | M26: -147930.1555 | N26: -147930.1555 | O26: -147930.1555 | P26: -147930.1555 | Q26: -147930.1555 | R26: -147930.1555 | S26: -147930.1555 | T26: -147930.1555 | U26: -147930.1555 | V26: -147930.1555 | W26: -147930.1555 | X26: -147930.1555 | Y26: -147930.1555 | Z26: -147930.1555 | AA26: -147930.1555
B28: Lucro Líquido | D28: =D23+D24+D26 -> 2406165.141 | E28: 2406165.141 | F28: -290696.8207 | G28: -119446.0861 | H28: 51804.64846 | I28: 223055.383 | J28: 394306.1176 | K28: 565556.8522 | L28: 736807.5867 | M28: 908058.3213 | N28: 1079309.056 | O28: 1250559.79 | P28: 4118672.487 | Q28: 4118672.487 | R28: 4118672.487 | S28: 4118672.487 | T28: 4118672.487 | U28: 4118672.487 | V28: 4118672.487 | W28: 4118672.487 | X28: 4118672.487 | Y28: 4118672.487 | Z28: 4118672.487 | AA28: 4118672.487
B30: Dividendos
B32: Lucros Retidos | D32: =D28+D30 -> 2406165.141 | E32: =E28+E30 -> 2406165.141 | F32: -290696.8207 | G32: -119446.0861 | H32: 51804.64846 | I32: 223055.383 | J32: 394306.1176 | K32: 565556.8522 | L32: 736807.5867 | M32: 908058.3213 | N32: 1079309.056 | O32: 1250559.79 | P32: 4118672.487 | Q32: 4118672.487 | R32: 4118672.487 | S32: 4118672.487 | T32: 4118672.487 | U32: 4118672.487 | V32: 4118672.487 | W32: 4118672.487 | X32: 4118672.487 | Y32: 4118672.487 | Z32: 4118672.487 | AA32: 4118672.487
